{"text_format":"1","workbook":"xlsx","n_sheets":2,"sheets":["Obrazac1-BudzetProjekta","Obrazac1a-RevidiranBudzet"],"not_rendered":{"charts":0,"images":0,"macros":1,"external_links":0,"defined_names":2,"comments":0,"pivot_tables":0},"unopened":[],"bounds":{"document_bytes":16777216,"sheet_cells":100000,"rows_first":2000,"rows_last":500,"rows_between":2000,"halvings":0,"cell_chars":16384,"cell_head_chars":4096},"cells_cut":0,"cells_raw":0,"read":"whole","date_system":"1900"}

{"sheet":"Obrazac1-BudzetProjekta","index":0,"n_rows":83,"n_cols":11,"rows_kept":83,"cut":false,"hidden":false,"merged":[[78,2,78,10],[15,4,15,7],[16,4,16,7],[17,4,17,7],[18,4,18,7],[69,1,69,10],[75,2,75,10],[70,8,70,10],[17,8,17,10],[18,8,18,10],[0,1,0,10],[19,1,19,10],[15,8,15,10],[16,8,16,10],[74,2,74,10],[4,4,4,10],[5,4,5,10],[7,4,7,10],[11,4,11,7],[12,4,12,7],[13,2,13,3],[11,2,11,3],[12,2,12,3],[5,2,5,3],[7,2,7,3],[8,2,8,3],[82,2,82,10],[20,2,20,10],[73,1,73,2],[73,8,73,10],[21,3,21,6],[21,7,21,10],[22,10,65,10],[72,8,72,10],[71,8,71,10],[67,1,67,10],[81,2,81,10],[80,2,80,10],[79,2,79,10],[77,2,77,10],[76,2,76,10],[68,1,68,10],[13,4,13,7],[14,2,14,3],[15,2,15,3],[16,2,16,3],[70,1,70,2],[70,3,70,7],[17,2,17,3],[18,2,18,3],[1,1,1,10],[2,2,2,10],[4,2,4,3],[14,4,14,7],[14,8,14,10],[6,4,6,10],[6,2,6,3],[3,2,3,3],[3,4,3,10],[9,4,9,10],[9,2,9,3],[11,8,11,10],[12,8,12,10],[8,4,8,10],[13,8,13,10],[10,2,10,10]]}
[null,"ОБРАЗАЦ  1"]
[null,"ТАБЕЛА - БУЏЕТ ПРОЈЕКТА  1/"]
[null,"1","ОСНОВНИ ПОДАЦИ"]
[null,"1.1","НАЗИВ ОРГАНА КОЈИ ЈЕ РАСПИСАО КОНКУРС/ПОЈЕДИНАЧНО ДАВАЊЕ (у даљем  тексту: Орган)           "]
[null,"1.2","ПОДНОСИЛАЦ ПРОЈЕКТА"]
[null,"1.3","НАЗИВ ПРОЈЕКТА"]
[null,"1.4","УКУПАН ИЗНОС СРЕДСТАВА ПРОЈЕКТА У ДИНАРИМА"]
[null,"1.5","ИЗНОС СРЕДСТАВА ОРГАНА ЗА КОЈА СЕ АПЛИЦИРА  У ДИНАРИМА                      "]
[null,"1.6","БРОЈ МЕДИЈСКИХ САДРЖАЈА "]
[null,"1.7","УЧЕШЋЕ СРЕДСТАВА ОРГАНА У УКУПНИМ СРЕДСТВИМА ПРОЈЕКТА ( у %)",null,{"$f":"+E9/E8","v":{"$error":"#DIV/0!"}}]
[null,"2","СПЕЦИФИКАЦИЈА ПРИХОДА 2/ "]
[null,null,"ИЗВОР ПРИХОДА",null," ИЗНОС У ДИНАРИМА",null,null,null,"УЧЕШЋЕ У %"]
[null,"2.1","СРЕДСТВА ПОДНОСИОЦА ПРИЈАВЕ ПРЕДЛОГА ПРОЈЕКТА",null,null,null,null,null,{"$f":"+E13/$E$19","v":{"$error":"#DIV/0!"}}]
[null,"2.2","СРЕДСТВА ИЗ РЕПУБЛИЧКОГ БУЏЕТА",null,null,null,null,null,{"$error":"#DIV/0!"}]
[null,"2.3","СРЕДСТВА ИЗ БУЏЕТА АУТОНОМНЕ ПОКРАЈИНЕ",null,null,null,null,null,{"$error":"#DIV/0!"}]
[null,"2.4","СРЕДСТВА ИЗ БУЏЕТА ЈЕДИНИЦЕ ЛОКАЛНЕ САМОУПРАВЕ (навести је/их)",null,null,null,null,null,{"$error":"#DIV/0!"}]
[null,"2.5","ДОНАЦИЈЕ (навести је/их)",null,null,null,null,null,{"$error":"#DIV/0!"}]
[null,"2.6","ОСТАЛИ ИЗВОРИ (навести који)",null,null,null,null,null,{"$error":"#DIV/0!"}]
[null,"2.1-2.6","УКУПНИ ПРИХОДИ ПРОЈЕКТА ",null,{"$f":"SUM(E13:H18)","v":0},null,null,null,{"$error":"#DIV/0!"}]
[]
[null,"3","СПЕЦИФИКАЦИЈА РАСХОДА 2/"]
[null,null,null,"ОДЕЉАК А- УКУПНИ ТРОШКОВИ ПРОЈЕКТА 3/",null,null,null,"ОДЕЉАК Б - ПОДЕЛА УКУПНИХ ТРОШКОВА ПО ИЗВОРИМА ФИНАНСИРАЊА 4/"]
[null,"РБ","Врста трошка 5/","Јединица мере","Цена по јединици","Број јединица","Укупно 6/","Трошкови (износ) који ће се финансирати из средстава Органа 7/","Трошкови (износ) који ће се финансирати из других извора финансирања у збирном износу 7/","ПРОВЕРА (нуле у колони=тачна расподела) 8/","УЧЕШЋЕ СРЕДСТАВА ОРГАНА У УКУПНИМ ТРОШКОВИМА 10(7/6)"]
[null,1,"2","3","4","5","6(4*5)","7","8","9(6-(7-8)"]
[null,"I","ОПЕРАТИВНИ ТРОШКОВИ ",null,null,null,{"$f":"SUM(G26:G45)","v":0},{"$f":"SUM(H26:H45)","v":0},{"$f":"SUM(I26:I45)","v":0},{"$f":"+G25-H25-I25","v":0}]
[null,null,null,null,null,null,{"$f":"+E26*F26","v":0},null,null,{"$f":"+G26-H26-I26","v":0}]
[null,null,null,null,null,null,{"$f":"+E27*F27","v":0},null,null,0]
[null,null,null,null,null,null,{"$f":"+E28*F28","v":0},null,null,0]
[null,null,null,null,null,null,{"$f":"+E29*F29","v":0},null,null,0]
[null,null,null,null,null,null,{"$f":"+E30*F30","v":0},null,null,0]
[null,null,null,null,null,null,0,null,null,0]
[null,null,null,null,null,null,0,null,null,0]
[null,null,null,null,null,null,0,null,null,0]
[null,null,null,null,null,null,0,null,null,0]
[null,null,null,null,null,null,0,null,null,0]
[null,null,null,null,null,null,0,null,null,0]
[null,null,null,null,null,null,0,null,null,0]
[null,null,null,null,null,null,0,null,null,0]
[null,null,null,null,null,null,0,null,null,0]
[null,null,null,null,null,null,0,null,null,0]
[null,null,null,null,null,null,0,null,null,0]
[null,null,null,null,null,null,0,null,null,0]
[null,null,null,null,null,null,0,null,null,0]
[null,null,null,null,null,null,0,null,null,0]
[null,null,null,null,null,null,0,null,null,0]
[null,"II","ПЕРСОНАЛНИ ТРОШКОВИ",null,null,null,{"$f":"SUM(G47:G66)","v":0},{"$f":"SUM(H47:H66)","v":0},{"$f":"SUM(I47:I66)","v":0},0]
[null,null,null,null,null,null,{"$f":"+E47*F47","v":0},null,null,0]
[null,null,null,null,null,null,{"$f":"+E48*F48","v":0},null,null,0]
[null,null,null,null,null,null,0,null,null,0]
[null,null,null,null,null,null,0,null,null,0]
[null,null,null,null,null,null,0,null,null,0]
[null,null,null,null,null,null,0,null,null,0]
[null,null,null,null,null,null,0,null,null,0]
[null,null,null,null,null,null,0,null,null,0]
[null,null,null,null,null,null,0,null,null,0]
[null,null,null,null,null,null,0,null,null,0]
[null,null,null,null,null,null,0,null,null,0]
[null,null,null,null,null,null,0,null,null,0]
[null,null,null,null,null,null,0,null,null,0]
[null,null,null,null,null,null,0,null,null,0]
[null,null,null,null,null,null,0,null,null,0]
[null,null,null,null,null,null,0,null,null,0]
[null,null,null,null,null,null,0,null,null,0]
[null,null,null,null,null,null,0,null,null,0]
[null,null,null,null,null,null,0,null,null,0]
[null,null,null,null,null,null,0,null,null,0]
[null,"I+II","УКУПНО (ОПЕРАТИВНИ И ПЕРСОНАЛНИ)",null,null,null,{"$f":"+G25+G46","v":0},{"$f":"+H25+H46","v":0},{"$f":"+I25+I46","v":0},0,{"$f":"+H67/G67","v":{"$error":"#DIV/0!"}}]
[]
[null,"И З Ј А В А"]
[null,"Као одговорно лице подносиоца пријаве, под кривичном и материјалном одговорношћу, изјављујем да да су сви, горенаведени подаци, истинити и тачни и  да су обезбеђена сопствена средства и  средства  из осталих извора прихода за реализацију пројекта, исказаних  у Спецификацији прихода овог обрасца."]
[null," Датум:          ",null," М.П.",null,null,null,null,"Одговорно лице:"]
[null,null,null,null,null,null,null,null,"(Име и презиме и потпис)"]
[]
[]
[null,null,"ПОЈАШЊЕЊА ЗА УНОС ПОДАТАКА:"]
[null,"1","ФОРМУЛАР ПОПУЊАВАТИ ИСКЉУЧИВО ЕЛЕКТРОНСКИ У EXCEL-u;  ЦРВЕНО УОКВИРЕНА ПОЉА СУ ПОД ФОРМУЛОМ И ЗАШТИЋЕНА ОД УНОСА ПОДАТАКА. НУМЕРИЧКИ ПОДАЦИ-БРОЈЕВИ СЕ УНОСЕ БЕЗ ТАЧКЕ И ЗАРЕЗА;"]
[null,"2","СВИ ИЗНОСИ СЕ УНОСЕ У ДИНАРИМА, ИЛИ ДИНАРСКОЈ ПРОТИВРЕДНОСТИ, У БРУТО ИЗНОСУ: СА ПДВ, ОДНОСНО ПРИПАДАЈУЋИМ ПОРЕЗИМА И ДОПРИНОСИМА"]
[null,"3","ОДЕЉАК А- ОДНОСИ СЕ НА УКУПНЕ ТРОШКОВЕ ПРОЈЕКТА ИЗ СВИХ ИЗВОРА ФИНАНСИРАЊА;"]
[null,"4","ОДЕЉАК Б - ОДНОСИ СЕ НА РАСПОДЕЛУ УКУПНИХ ТРОШКОВА ПРОЈЕКТА И ТО  НА ДЕО КОЈИ ЋЕ СЕ ФИНАНСИРАТИ СРЕДСТВИМА ОРГАНА И НА ДЕО КОЈИ ЋЕ БИТИ  ФИНАНСИРАН ИЗ ОСТАЛИХ ИЗВОРА, ДАТИХ ЗБИРНО.  НЕОПХОДНО ЈЕ ДА ПОДЕЛА ТРОШКОВА БУДЕ ПО ЦЕЛИНАМА ИСТОВРСНИХ ТРОШКОВА  (ПРИМЕР: ТРОШКОВИ ШТАМПАЊА (100.000) ДИН, НЕ  МОГУ СЕ ПРИКАЗАТИ У ОДЕЉКУ II У ИЗНОСУ ОД РЕЦИМО 80.000 ДИН. ИЗ СРЕДСТАВА ОРГАНА  А  20.000 ДИН. ИЗ ДРУГИХ ИЗВОРА.  ОВИ ТРОШКОВИ СЕ  МОРАЈУ ИСКАЗАТИ У ЦЕЛОСТИ ( 100.000 ДИН ) ИЛИ У ОДЕЉКУ I ИЛИ У ОДЕЉКУ II.    ОВО ЈЕ ПОТРЕБНО РАДИ КОНТРОЛЕ  НАМЕНСКОГ ТРОШЕЊА СРЕДСТАВА БУЏЕТСКИХ ИЗВОРА ФИНАНСИРАЊА)."]
[null,"5","КОЛОНА 2:  УНЕТИ НАЗИВЕ РАСХОДА  (ПРИМЕР, ТРОШКОВИ ШТАМПЕ, ДИЗАЈНА, ВРСТЕ МАТЕРИЈАЛНИХ ТРОШКОВА И ДРУГО), А КОЈИ СУ САСТАВНИ ДЕО ПРОЈЕКТА У СКЛАДУ СА АКТИВНОСТИМА НАВЕДЕНИМ У ТАЧКИ 4.10  ПРИЈАВЕ;"]
[null,"6","ИЗНОСИ У КОЛОНИ 6 СЕ ДОБИЈАЈУ КАО ПРОИЗВОД (МНОЖЕЊЕМ) КОЛОНА 4 И 5., А ПРИТОМ СЕ У КОЛОНУ  3 УНОСИ ВРСТА ЈЕДИНИЦЕ МЕРЕ (БРОЈ СТРАНА, ИЗДАЊА, Е-НОСАЧА, ЗА УГОВОРЕ О ДЕЛУ ИСКАЗАТИ ПЕРИОД АНГАЖМАНА У МЕСЕЦИМА АКО ЈЕ ДУЖИ ПЕРИОД ОД МЕСЕЦ ДАНА, ОДНОСНО У ДАНИМА ДО МЕСЕЦ ДАНА, И СЛ.)."]
[null,"7","КОЛОНЕ 7 И 8 У ЗБИРУ МОРАЈУ ДА ДАЈУ ИЗНОСЕ У КОЛОНИ 6 - УКУПНИ ТРОШКОВИ."]
[null,8,"КОЛОНА 9 СЛУЖИ КАО ПРОВЕРА ТАЧНОСТИ УНОСА ПОДАТАКА ПРИЛИКОМ РАСПОДЕЛЕ НА ТРОШКОВЕ КОЈИ ЋЕ СЕ ФИНАНСИРАТИ ИЗ БУЏЕТА И ИЗ ДРУГИХ ИЗВОРА ФИНАНСИРАЊА. АКО ЈЕ РАСПОДЕЛА ТРОШКОВА ТАЧНА У КОЛОНИ  9 ЋЕ БИТИ НУЛЕ.  АКО СЕ ПОЈАВИ  БРОЈ, ОН УКАЗУЈЕ НА ГРЕШКУ У ВИСИНИ ТОГ БРОЈА, УЧИЊЕНУ ПРИЛИКОМ РАСПОДЕЛЕ ТРОШКОВА."]

{"sheet":"Obrazac1a-RevidiranBudzet","index":1,"n_rows":89,"n_cols":11,"rows_kept":89,"cut":false,"hidden":false,"merged":[[0,1,0,10],[8,2,8,3],[8,4,8,10],[6,2,6,3],[6,4,6,10],[7,2,7,3],[7,4,7,10],[1,1,1,10],[2,1,2,10],[3,2,3,10],[5,2,5,3],[5,4,5,10],[4,2,4,3],[4,4,4,10],[15,4,15,10],[10,2,10,3],[10,4,10,10],[9,4,9,10],[13,2,13,3],[13,4,13,10],[14,2,14,3],[14,4,14,10],[15,2,15,3],[11,2,11,3],[11,4,11,10],[12,2,12,3],[12,4,12,10],[9,2,9,3],[24,9,24,10],[23,4,23,5],[23,6,23,7],[24,4,24,5],[23,9,23,10],[19,6,19,7],[20,4,20,5],[20,6,20,7],[17,2,17,3],[18,2,18,3],[19,2,19,3],[20,2,20,3],[17,6,17,7],[22,4,22,5],[22,6,22,7],[23,2,23,3],[24,2,24,3],[16,2,16,10],[19,4,19,5],[18,6,18,7],[17,4,17,5],[17,9,17,10],[18,9,18,10],[19,9,19,10],[20,9,20,10],[18,4,18,5],[21,9,21,10],[22,9,22,10],[24,6,24,7],[25,2,25,3],[27,2,27,10],[25,9,25,10],[25,4,25,5],[26,1,26,10],[25,6,25,7],[76,1,76,2],[76,3,76,7],[76,8,76,10],[28,3,28,6],[28,7,28,10],[21,2,21,3],[22,2,22,3],[21,4,21,5],[21,6,21,7],[88,2,88,10],[29,10,72,10],[81,2,81,10],[82,2,82,10],[83,2,83,10],[84,2,84,10],[74,1,74,10],[75,1,75,10],[87,2,87,10],[77,8,77,10],[85,2,85,10],[86,2,86,10]]}
[null,"OBRAZAC 1/2"]
[null,"TABELA-REVIDIRAN BUDZET PROJEKTA 1"]
[null,"(USAGLASAVANJE OBIMA MEDIJSKIH SADRZAJA,PRIHODA I RASHODA SA NOVOOPREDIJELJENIM SREDSTVIMA ORGANA)"]
[null,"1","OSNOVNI PODACI"]
[null,"1.1","NAZIV ORGANA KOJI RASPISUJE KONKURS/POJEDINACNO DAVANJE (u daljem tekstu Organ)",null,{"$f":"+'Obrazac1-BudzetProjekta'!E4:K4","v":0}]
[null,"1.2","PODNOSILAC PROJEKTA",null,{"$f":"+'Obrazac1-BudzetProjekta'!E5:K5","v":0}]
[null,"1.3","NAZIV PROJEKTRA",null,{"$f":"+'Obrazac1-BudzetProjekta'!E6:K6","v":0}]
[null,"1.4","UKUPAN IZNOS SREDSTAVA PROJEKTA U DINARIMA",null,{"$f":"+'Obrazac1-BudzetProjekta'!E7:K7","v":0}]
[null,"1.5","IZNOS SREDSTAVA ORGANA ZA KOJI SE APLICIRA U DINARIMA",null,{"$f":"+'Obrazac1-BudzetProjekta'!E8:K8","v":0}]
[null,"1.6","BROJ MEDIJSKIH SADRŽAJA",null,{"$f":"+'Obrazac1-BudzetProjekta'!E9:K9","v":0}]
[null,"1.7","IZNOS PO JEDINICI MEDIJSKOG SADRŽAJA",null,{"$f":"+E8/E10","v":{"$error":"#DIV/0!"}}]
[null,"1.8","REVIDIRAN UKUPAN IZNOS SREDSTAVA PROJEKTA (Unijeti nov podatak)"]
[null,"1.9","REVIDIRAN IZNOS SREDSTAVA ORGANA (Unijeti nov podatak)"]
[null,"1.10","REVIDIRAN BROJ MEDIJSKIH SADRŽAJA (Unijeti nov podatak)"]
[null,"1.11","REVIDIRAN IZNOS PO JEDINICI MEDIJSKOG SADRŽAJA",null,{"$f":"+E12/E14","v":{"$error":"#DIV/0!"}}]
[null,"1.12","REVIDIRANO UČEŠĆE SREDSTAVA ORGANA U UKUPNIM SREDSTVIMA PROJEKTA ( u %)",null,{"$f":"+E13/E12","v":{"$error":"#DIV/0!"}}]
[null,"2","REVIDIRANA SPECIFIKACIJA PRIHODA (UPOREDNI PODACI O PLANIRANIM I REVIDIRANIM PRIHODIMA BUDŽETA PROJEKTA)"]
[null,null,null,null,"BUDZET PROJEKTA ( iz Obrasca 1-prijava)",null,"REVIDIRAN BUDZET PROJEKTA",null,"UČEŠĆE U PLANIRANIM PRIHODIMA","UČEŠĆE REVIDIRANIM PRIHODIMA"]
[null,"1",2,null,"3",null,"4",null,"5","6"]
[null,"2.1","SRADSTVA PODNOSIOCA PRIJAVE PRIJEDLOGA PROJEKTA",null,null,null,null,null,{"$f":"+E20/$E$26","v":{"$error":"#DIV/0!"}},{"$f":"+G20/$G$26","v":{"$error":"#DIV/0!"}}]
[null,"2.2","SREDSTVA IZ REPUBLIČKOG BUDŽET",null,{"$f":"+'Obrazac1-BudzetProjekta'!E14:H14","v":0},null,null,null,{"$f":"+E21/$E$26","v":{"$error":"#DIV/0!"}},{"$f":"+G21/$G$26","v":{"$error":"#DIV/0!"}}]
[null,"2.3","SREDSTVA IZ BUDŽETA AUTONOMNE POKRAJINE",null,{"$f":"+'Obrazac1-BudzetProjekta'!E15:H15","v":0},null,null,null,{"$error":"#DIV/0!"},{"$error":"#DIV/0!"}]
[null,"2.4","SREDSTVA IZ BUDŽETA JEDINICE LOKALNE SAMOUPRAVE",null,{"$f":"+'Obrazac1-BudzetProjekta'!E16:H16","v":0},null,null,null,{"$error":"#DIV/0!"},{"$error":"#DIV/0!"}]
[null,"2.5","DONACIJE",null,{"$f":"+'Obrazac1-BudzetProjekta'!E17:H17","v":0},null,null,null,{"$error":"#DIV/0!"},{"$error":"#DIV/0!"}]
[null,"2.6","OSTALI IZVORI (navesti)",null,{"$f":"+'Obrazac1-BudzetProjekta'!E18:H18","v":0},null,null,null,{"$error":"#DIV/0!"},{"$error":"#DIV/0!"}]
[null,"2.1-2.6","UKUPNI PRIHODI PROJEKTA",null,{"$f":"SUM(E20:F25)","v":0},null,{"$f":"SUM(G20:G25)","v":0},null,{"$error":"#DIV/0!"},{"$error":"#DIV/0!"}]
[]
[null,"3","REVIDIRANA SPECIFIKACIJA RASHODA"]
[null,null,null,"ODELJAK - UKUPNI TROŠKOVI PROJEKTA 2/",null,null,null,"ODELJAK B-PODJELA UKUPNIH TROŠKOVA PO IZVORIMA FINASIRANJA 3/"]
[null,"RB","Vrsta troška 4/","Jedinica mjere","Cijena po jedinici","Broj jedinica","Ukupno 5/","Troškovi (iznos) koji će se finasirati iz sredstava Organa 6/","Troškovi (iznos) koji će se finasirati iz drugih izvora finasiranja u zbirnom iznosu 6/","PROVJERA (nule u količini=tačna raspodjela) 7/","UČEŠĆE SREDSTAVA ORGANA  U UKUPNIM TROŠKOVIMA 10 (7/6)\n\n\n\n\n\n\n\n\n\n\n\n\n\n\n\n\n\n\n\n\n\n\n\n\n\n\n\n\n\n"]
[null,1,"2","3","4","5","6(4*5)","7","8","9(6-(7-8)"]
[null,"I","OPERATIVNI TROŠKOVI",null,null,null,{"$f":"SUM(G33:G52)","v":0},{"$f":"SUM(H33:H52)","v":0},{"$f":"SUM(I33:I52)","v":0},{"$f":"+G32-H32-I32","v":0}]
[null,null,null,null,null,null,{"$f":"+E33*F33","v":0},null,null,{"$f":"+G33-H33-I33","v":0}]
[null,null,null,null,null,null,{"$f":"+E34*F34","v":0},null,null,0]
[null,null,null,null,null,null,{"$f":"+E35*F35","v":0},null,null,0]
[null,null,null,null,null,null,{"$f":"+E36*F36","v":0},null,null,0]
[null,null,null,null,null,null,{"$f":"+E37*F37","v":0},null,null,0]
[null,null,null,null,null,null,0,null,null,0]
[null,null,null,null,null,null,0,null,null,0]
[null,null,null,null,null,null,0,null,null,0]
[null,null,null,null,null,null,0,null,null,0]
[null,null,null,null,null,null,0,null,null,0]
[null,null,null,null,null,null,0,null,null,0]
[null,null,null,null,null,null,0,null,null,0]
[null,null,null,null,null,null,0,null,null,0]
[null,null,null,null,null,null,0,null,null,0]
[null,null,null,null,null,null,0,null,null,0]
[null,null,null,null,null,null,0,null,null,0]
[null,null,null,null,null,null,0,null,null,0]
[null,null,null,null,null,null,0,null,null,0]
[null,null,null,null,null,null,0,null,null,0]
[null,null,null,null,null,null,0,null,null,0]
[null,"II","PERSONALNI TROŠKOVI",null,null,null,{"$f":"SUM(G54:G73)","v":0},{"$f":"SUM(H54:H73)","v":0},{"$f":"SUM(I54:I73)","v":0},0]
[null,null,null,null,null,null,{"$f":"+E54*F54","v":0},null,null,0]
[null,null,null,null,null,null,{"$f":"+E55*F55","v":0},null,null,0]
[null,null,null,null,null,null,0,null,null,0]
[null,null,null,null,null,null,0,null,null,0]
[null,null,null,null,null,null,0,null,null,0]
[null,null,null,null,null,null,0,null,null,0]
[null,null,null,null,null,null,0,null,null,0]
[null,null,null,null,null,null,0,null,null,0]
[null,null,null,null,null,null,0,null,null,0]
[null,null,null,null,null,null,0,null,null,0]
[null,null,null,null,null,null,0,null,null,0]
[null,null,null,null,null,null,0,null,null,0]
[null,null,null,null,null,null,0,null,null,0]
[null,null,null,null,null,null,0,null,null,0]
[null,null,null,null,null,null,0,null,null,0]
[null,null,null,null,null,null,0,null,null,0]
[null,null,null,null,null,null,0,null,null,0]
[null,null,null,null,null,null,0,null,null,0]
[null,null,null,null,null,null,0,null,null,0]
[null,null,null,null,null,null,0,null,null,0]
[null,"I+II","UKUPNO (OPERATIVNI I PERSONALNI)",null,null,null,{"$f":"+G32+G53","v":0},{"$f":"+H32+H53","v":0},{"$f":"+I32+I53","v":0},0,{"$f":"+H74/G74","v":{"$error":"#DIV/0!"}}]
[null,"I Z J A V A"]
[null,"Kao odgovorno lice podnosioca prijave, pod krivičnom i materijalnom odgovornošću, izjavljujem da su svi, gore navedeni podaci, istiniti i tačni i da imam obezbijeđena sopstvena sredstva i sredstva iz ostalih izvora prihoda za realizaciju projekta, iskazanih u Revidiranoj specifikaciji prihoda ovog obrasca."]
[null,"Datum:",null,"M.P.",null,null,null,null,"Ovlašćeno lice:"]
[null,null,null,null,null,null,null,null,"(Ime i prezime i potpis)"]
[]
[]
[]
[null,null,"POJAŠNJENJA ZA UNOS PODATAKA U OBRAZAC:"]
[null,"1","FORMULAR POPUNJAVATI ISKLJUČIVO NA RAČUNARU U EXCEL-u; CRVENO UOKVIRENA POLJA SU POD FORMULOM I ZAŠTIĆENA OD UNOSA PODATAKA . NUMERIČKI PODACI - BROJEVI SE UNOSE BEZ TAČKE I ZAREZA; SVI ZNOSI SE UNOSE U DINARIMA, ILI DINARSKOJ PRTIVRIJEDNOSTI, U BRUTO IZNOSU; SA PDV, ODNOSNO PRIPADAJUĆIM POREZIMA I DOPRINOSIMA."]
[null,"2","ODELJAK A-TABELE, ODNOSI SE NA UKUPNE TROŠKOVE PROJEKTA IZ SVIH IZVORA FINASIRANJA."]
[null,"3","ODELJAK B-TABELE, ODNOSI SE NA RASPODJELU UKUPNIH TROŠKOVA PROJEKTA I TO NA DIO KOJI ĆE SE FINASIRATI SREDSTVIMA ORGANA I NA DIO KOJI ĆE BITI FINASIRAN IZ OSTALIH IZVORA,DATIH ZBIRNO. NEOPHODNO JE DA PODJELA TROŠKOVA BUDE PO CJELINAMA ISTOVRSNIH TROŠKOVA ( PRIMJER: TROŠKOVI ŠTAMPANJA ( 100.000) DIN,NE MOGU SE PRIKAZATI U ODELJKU II U IZNOSU OD RECIMO 80.000 DIN. IZ SREDSTAVA ORGANA A 20.000 DIN. IZ DRUGIH IZVORA. OVI TROŠKOVI SE MORAJU ISKAZATI U CJELOSTI (100.000 DIN) ILI U ODELJKU I ILI U ODELJKU II. OVO JE POTREBNO RADI KONTROLE NAMJENOSKOG TROŠENJA SREDSTAVA BUDŽETSKIH IZVORA FINASIRANJA."]
[null,"4","KOLONA 2: UNIJETI NAZIVE RASHODA (PRIMJER, TROPKOVI ŠTAMPE,DIZAJNA, VRSTE MATERIJALNIH TROŠKOVA I DRUGO), A KOJI SU SASTAVNI DIO PROJEKTA U SKLADU SA AKTIVNOSTIMA NAVEDENIM U TAČKI 4.10 PRIJAVE."]
[null,5,"IZNOSI U KOLONI 6 SE DOBIJAJU KAO PROIZVOD (MNOŽENJEM) KOLONA 4 I 5, A PRITOM SE U KOLONU 3 UNOSI VRSTA JEDINICE MJERE (BROJ STRANA, IZDANJA, E-.NOSAČA, ZA UGOVORE O DJELU ISKAZATI PERIOD ANGAŽMANA U MJESECIMA,AKO JE DUŽI PERIOD OD MJESEC DANA,ODNOSNO U DANIMA DO MJESEC DANA, I SL)."]
[null,"6","KOLONE 7 I 8 U ZBIRU MORAJU DA DAJU IZNOSE U KOLONI 6 - UKUPNI TROŠKOVI."]
[null,"7","KOLONA 9 SLUŽI KAO PROVJERA TAČNOSTI UNOSA PODATAKA PRILIKOM RASPODJELE NA TROŠKOVE KOJI ĆE SE FINASIRATI IZ BUDŽETA I IZ DRUGIH IZVORA FINASIRANJA. AKO JE RASPODJELA TROŠKOVA TAČNA U KOLONI 9 ĆE BITI NULE. AKO SE POJAVI BROJ, ON UKAZUJE NA GREŠKU U VISINI TOG BROJA,UČINJENU PRILIKOM RASPODJELE."]